fUSD/lending_fUSD_20240409
["ID","MTS","AMOUNT","RATE_DAILY","PERIOD"]
[322019424,1712691042907,-500.0,0.00019725,2]
[322019425,1712691042916,-515.66027525,0.00019725,2]
[322019426,1712691042925,-500.0,0.00019725,2]
[322019427,1712691042935,-500.0,0.00019725,2]
[322019428,1712691042944,-422.13015303,0.00019725,2]
[322019429,1712691042953,-500.0,0.00019725,2]
[322019430,1712691042963,-500.0,0.00019725,2]
[322019431,1712691042972,-303.18832637,0.00019725,2]
[322019432,1712691042982,-500.0,0.00019725,2]
[322019433,1712691042991,-571.41,0.00019725,2]
[322019434,1712691043001,-500.0,0.00019725,2]
[322019435,1712691043010,-500.0,0.00019725,2]
[322019436,1712691043019,-500.0,0.00019725,2]
[322019437,1712691043029,-500.0,0.00019725,2]
[322019438,1712691043038,-500.0,0.00019725,2]
[322019439,1712691043047,-500.0,0.00019725,2]
[322019440,1712691043056,-500.0,0.00019725,2]
[322019441,1712691043065,-500.0,0.00019725,2]
[322019442,1712691043075,-500.0,0.00019725,2]
[322019443,1712691043084,-383.62,0.00019725,2]
[322019444,1712691043094,-500.0,0.00019725,2]
[322019445,1712691043105,-500.0,0.00019725,2]
[322019446,1712691043114,-942.7,0.00019725,2]
[322019447,1712691043123,-500.0,0.00019725,2]
[322019448,1712691043132,-500.0,0.00019725,2]
[322019449,1712691043141,-473.4805789,0.00019725,2]
[322019450,1712691043151,-1232.26,0.00019725,2]
[322019451,1712691043160,-962.03,0.00019725,2]
[322019452,1712691043169,-220.58247064,0.00019725,2]
[322019453,1712691043178,-500.0,0.00019725,2]
[322019454,1712691043187,-500.0,0.00019725,2]
[322019455,1712691043197,-500.0,0.00019725,2]
[322019456,1712691043206,-500.0,0.00019725,2]
[322019457,1712691043215,-500.0,0.00019725,2]
[322019458,1712691043224,-515.2,0.00019725,2]
[322019459,1712691043233,-500.0,0.00019725,2]
[322019460,1712691043242,-500.0,0.00019725,2]
[322019461,1712691043251,-500.0,0.00019725,2]
[322019462,1712691043260,-500.0,0.00019725,2]
[322019463,1712691043270,-326.11,0.00019725,2]
[322019464,1712691043279,-500.0,0.00019725,2]
[322019465,1712691043288,-500.0,0.00019725,2]
[322019466,1712691043297,-500.0,0.00019725,2]
[322019467,1712691043307,-288.19395781,0.00019725,2]
[322019468,1712691043316,-500.0,0.00019725,2]
[322019469,1712691043325,-500.0,0.00019725,2]
[322019470,1712691043334,-413.9,0.00019725,2]
[322019471,1712691043343,-500.0,0.00019725,2]
[322019472,1712691043354,-500.0,0.00019725,2]
[322019473,1712691043363,-1152.17,0.00019725,2]
[322019474,1712691043372,-3712.51,0.00019725,2]
[322019475,1712691043381,-500.0,0.00019726,2]
[322019476,1712691043390,-500.0,0.00019726,2]
[322019477,1712691043399,-500.0,0.00019726,2]
[322019478,1712691043408,-500.0,0.00019726,2]
[322019479,1712691043417,-537.42286218,0.00019726,2]
[322019480,1712691043426,-500.0,0.00019726,2]
[322019481,1712691043435,-175.21684151,0.00019726,2]
[322019482,1712691043444,-500.0,0.00019726,2]
[322019483,1712691043456,-500.0,0.00019726,2]
[322019484,1712691043465,-500.0,0.00019726,2]
[322019485,1712691043474,-500.0,0.00019726,2]
[322019486,1712691043483,-301.23035813,0.00019726,2]
[322019487,1712691043492,-500.0,0.00019726,2]
[322019488,1712691043501,-500.0,0.00019726,2]
[322019489,1712691043511,-500.0,0.00019726,2]
[322019490,1712691043520,-500.0,0.00019726,2]
[322019491,1712691043529,-500.0,0.00019726,2]
[322019492,1712691043539,-500.0,0.00019726,2]
[322019493,1712691043548,-500.0,0.00019726,2]
[322019494,1712691043557,-695.0,0.00019726,2]
[322019495,1712691043567,-557.14803393,0.00019726,2]
[322019496,1712691043576,-248.51,0.00019726,2]
[322019497,1712691043585,-413.1,0.00019726,2]
[322019498,1712691043595,-741.57,0.00019726,2]
[322019499,1712691043606,-500.0,0.00019726,2]
[322019500,1712691043617,-500.0,0.00019726,2]
[322019501,1712691043626,-500.0,0.00019726,2]
[322019502,1712691043635,-693.39,0.00019726,2]
[322019503,1712691043644,-500.0,0.00019726,2]
[322019504,1712691043654,-4188.16,0.00019726,2]
[322019505,1712691043663,-500.0,0.00019726,2]
[322019506,1712691043672,-500.0,0.00019726,2]
[322019507,1712691043683,-516.51,0.00019726,2]
[322019508,1712691043692,-500.0,0.00019726,2]
[322019509,1712691043701,-500.0,0.00019726,2]
[322019510,1712691043710,-500.0,0.00019726,2]
[322019511,1712691043720,-500.0,0.00019726,2]
[322019512,1712691043729,-500.0,0.00019726,2]
[322019513,1712691043738,-500.0,0.00019726,2]
[322019514,1712691043747,-635.47,0.00019726,2]
[322019515,1712691043756,-500.0,0.00019726,2]
[322019516,1712691043765,-1341.18,0.00019726,2]
[322019517,1712691043775,-810.77,0.00019726,2]
[322019518,1712691043785,-500.0,0.00019726,2]
[322019519,1712691043795,-3519.24,0.00019726,2]
[322019520,1712691043804,-500.0,0.00019726,2]
[322019521,1712691043815,-715.23,0.00019726,2]
[322019522,1712691043825,-500.0,0.00019726,2]
[322019523,1712691043835,-500.0,0.00019726,2]
[322019524,1712691043844,-500.0,0.00019726,2]
[322019525,1712691043856,-500.0,0.00019726,2]
[322019526,1712691043867,-500.0,0.00019726,2]
[322019527,1712691043876,-500.0,0.00019726,2]
[322019528,1712691043886,-500.0,0.00019726,2]
[322019529,1712691043894,-500.0,0.00019726,2]
[322019530,1712691043903,-500.0,0.00019726,2]
[322019531,1712691043915,-500.0,0.00019726,2]
[322019532,1712691043925,-500.0,0.00019726,2]
[322019533,1712691043935,-500.0,0.00019726,2]
[322019534,1712691043944,-500.0,0.00019726,2]
[322019535,1712691043953,-500.0,0.00019726,2]
[322019536,1712691043963,-500.0,0.00019726,2]
[322019537,1712691043973,-500.0,0.00019726,2]
[322019538,1712691043983,-645.32,0.00019726,2]
[322019539,1712691043992,-500.0,0.00019726,2]
[322019540,1712691044002,-500.0,0.00019726,2]
[322019541,1712691044012,-500.0,0.00019726,2]
[322019542,1712691044022,-716.09,0.00019726,2]
[322019543,1712691044032,-648.72,0.00019726,2]
[322019544,1712691044041,-617.55,0.00019726,2]
[322019545,1712691044051,-500.0,0.00019726,2]
[322019546,1712691044062,-500.0,0.00019726,2]
[322019547,1712691044071,-718.23,0.00019726,2]
[322019548,1712691044081,-1111.05,0.00019726,2]
[322019549,1712691044090,-500.0,0.00019726,2]
[322019550,1712691044100,-500.0,0.00019726,2]
[322019551,1712691044110,-500.0,0.00019726,2]
[322019552,1712691044119,-500.0,0.00019726,2]
[322019553,1712691044128,-500.0,0.00019726,2]
[322019554,1712691044139,-500.0,0.00019726,2]
[322019555,1712691044149,-500.0,0.00019726,2]
[322019556,1712691044158,-1390.0,0.00019726,2]
[322019557,1712691044168,-500.0,0.00019726,2]
[322019558,1712691044177,-500.0,0.00019726,2]
[322019559,1712691044186,-500.0,0.00019726,2]
[322019560,1712691044196,-684.05,0.00019726,2]
[322019561,1712691044206,-1299.02,0.00019726,2]
[322019562,1712691044216,-500.0,0.00019726,2]
[322019563,1712691044226,-500.0,0.00019726,2]
[322019564,1712691044237,-548.14,0.00019726,2]
[322019565,1712691044247,-500.0,0.00019726,2]
[322019566,1712691044256,-669.77,0.00019726,2]
[322019567,1712691044266,-500.0,0.00019726,2]
[322019568,1712691044276,-500.0,0.00019726,2]
[322019569,1712691044287,-509.28,0.00019726,2]
[322019570,1712691044298,-625.95,0.00019726,2]
[322019571,1712691044308,-500.0,0.00019726,2]
[322019572,1712691044318,-644.02,0.00019726,2]
[322019573,1712691044329,-500.0,0.00019726,2]
[322019574,1712691044339,-4448.5,0.00019726,2]
[322019575,1712691044350,-1194.58,0.00019726,2]
[322019576,1712691044360,-500.0,0.00019726,2]
[322019577,1712691044369,-500.0,0.00019726,2]
[322019578,1712691044378,-1973.39,0.00019726,2]
[322019579,1712691044387,-521.14,0.00019726,2]
[322019580,1712691044396,-500.0,0.00019726,2]
[322019581,1712691044405,-500.0,0.00019726,2]
[322019582,1712691044414,-500.0,0.00019726,2]
[322019583,1712691044423,-500.0,0.00019726,2]
[322019584,1712691044432,-500.0,0.00019726,2]
[322019585,1712691044442,-532.26647687,0.00019859,2]
[322019586,1712691044451,-156.74977532,0.00019878,2]
[322019587,1712691044461,-3854.93240704,0.00019888,2]
[322019588,1712691044470,-500.0,0.00019999,2]
[322019589,1712691044479,-500.0,0.00019999,2]
[322019590,1712691044488,-185.70305778,0.00019999,2]
[322019591,1712691044497,-500.0,0.00019999,2]
[322019592,1712691044507,-500.0,0.00019999,2]
[322019593,1712691044517,-500.0,0.00019999,2]
[322019594,1712691044526,-942.7,0.00019999,2]
[322019595,1712691044536,-500.0,0.00019999,2]
[322019596,1712691044545,-1232.26,0.00019999,2]
[322019597,1712691044556,-962.03,0.00019999,2]
[322019598,1712691044565,-500.0,0.00019999,2]
[322019599,1712691044575,-500.0,0.00019999,2]
[322019600,1712691044583,-500.0,0.00019999,2]
[322019601,1712691044593,-515.2,0.00019999,2]
[322019602,1712691044606,-500.0,0.00019999,2]
[322019603,1712691044619,-500.0,0.00019999,2]
[322019604,1712691044791,-500.0,0.00019999,2]
[322019605,1712691044822,-500.0,0.00019999,2]
[322019606,1712691044832,-500.0,0.00019999,2]
[322019607,1712691044841,-500.0,0.00019999,2]
[322019608,1712691044849,-500.0,0.00019999,2]
[322019609,1712691044859,-500.0,0.00019999,2]
[322019610,1712691044868,-500.0,0.00019999,2]
[322019611,1712691044877,-500.0,0.00019999,2]
[322019612,1712691044886,-1152.17,0.00019999,2]
[322019613,1712691044895,-3712.51,0.00019999,2]
[322019614,1712691044904,-2930.9,0.0002,2]
[322019615,1712691044913,-14995.41334822,0.0002,2]
[322019616,1712691044923,-1045.38886647,0.0002,2]
[322019617,1712691044932,-640.36073916,0.0002,2]
[322019618,1712691044941,-185.78135859,0.0002,2]
[322019619,1712691044950,-624.32519161,0.0002,2]
[322019620,1712691044959,-500.0,0.0002,2]
[322019621,1712691044968,-453.49163324,0.0002,2]
[322019622,1712691044977,-500.0,0.0002,2]
[322019623,1712691044986,-500.0,0.0002,2]
[322019624,1712691044995,-500.0,0.0002,2]
[322019625,1712691045004,-500.0,0.0002,2]
[322019626,1712691045013,-500.0,0.0002,2]
[322019627,1712691045022,-500.0,0.0002,2]
[322019628,1712691045031,-500.0,0.0002,2]
[322019629,1712691045040,-500.0,0.0002,2]
[322019630,1712691045049,-500.0,0.0002,2]
[322019631,1712691045058,-564.70954056,0.0002,2]
[322019632,1712691045066,-42435.67679255,0.0002,2]
[322019633,1712691045075,-500.0,0.0002,2]
[322019634,1712691045085,-500.0,0.0002,2]
[322019635,1712691045094,-500.0,0.0002,2]
[322019636,1712691045103,-695.0,0.0002,2]
[322019637,1712691045112,-741.57,0.0002,2]
[322019638,1712691045121,-500.0,0.0002,2]
[322019639,1712691045130,-500.0,0.0002,2]
[322019640,1712691045139,-500.0,0.0002,2]
[322019641,1712691045148,-500.0,0.0002,2]
[322019642,1712691045157,-693.39,0.0002,2]
[322019643,1712691045167,-4188.16,0.0002,2]
[322019644,1712691045176,-500.0,0.0002,2]
[322019645,1712691045185,-500.0,0.0002,2]
[322019646,1712691045194,-516.51,0.0002,2]
[322019647,1712691045203,-500.0,0.0002,2]
[322019648,1712691045212,-500.0,0.0002,2]
[322019649,1712691045221,-500.0,0.0002,2]
[322019650,1712691045230,-500.0,0.0002,2]
[322019651,1712691045239,-500.0,0.0002,2]
[322019652,1712691045248,-500.0,0.0002,2]
[322019653,1712691045257,-635.47,0.0002,2]
[322019654,1712691045266,-500.0,0.0002,2]
[322019655,1712691045275,-1341.18,0.0002,2]
[322019656,1712691045284,-810.77,0.0002,2]
[322019657,1712691045294,-500.0,0.0002,2]
[322019658,1712691045303,-3519.24,0.0002,2]
[322019659,1712691045312,-500.0,0.0002,2]
[322019660,1712691045321,-715.23,0.0002,2]
[322019661,1712691045329,-500.0,0.0002,2]
[322019662,1712691045339,-500.0,0.0002,2]
[322019663,1712691045348,-500.0,0.0002,2]
[322019664,1712691045356,-500.0,0.0002,2]
[322019665,1712691045366,-500.0,0.0002,2]
[322019666,1712691045374,-500.0,0.0002,2]
[322019667,1712691045383,-500.0,0.0002,2]
[322019668,1712691045392,-500.0,0.0002,2]
[322019669,1712691045401,-500.0,0.0002,2]
[322019670,1712691045411,-500.0,0.0002,2]
[322019671,1712691045421,-500.0,0.0002,2]
[322019672,1712691045430,-500.0,0.0002,2]
[322019673,1712691045439,-500.0,0.0002,2]
[322019674,1712691045448,-500.0,0.0002,2]
[322019675,1712691045457,-500.0,0.0002,2]
[322019676,1712691045467,-500.0,0.0002,2]
[322019677,1712691045475,-645.32,0.0002,2]
[322019678,1712691045484,-500.0,0.0002,2]
[322019679,1712691045494,-500.0,0.0002,2]
[322019680,1712691045502,-500.0,0.0002,2]
[322019681,1712691045512,-716.09,0.0002,2]
[322019682,1712691045520,-648.72,0.0002,2]
[322019683,1712691045529,-617.55,0.0002,2]
[322019684,1712691045538,-500.0,0.0002,2]
[322019685,1712691045547,-718.23,0.0002,2]
[322019686,1712691045556,-1111.05,0.0002,2]
[322019687,1712691045565,-500.0,0.0002,2]
[322019688,1712691045574,-500.0,0.0002,2]
[322019689,1712691045583,-500.0,0.0002,2]
[322019690,1712691045592,-500.0,0.0002,2]
[322019691,1712691045603,-500.0,0.0002,2]
[322019692,1712691045615,-593.52796643,0.0002,2]
[322019693,1712691045624,-500.0,0.0002,2]
[322019695,1712691045633,-1390.0,0.0002,2]
[322019697,1712691045643,-500.0,0.0002,2]
[322019699,1712691045653,-275.6942115,0.0002,2]
[322019701,1712691045662,-500.0,0.0002,2]
[322019703,1712691045671,-684.05,0.0002,2]
[322019705,1712691045680,-1299.02,0.0002,2]
[322019707,1712691045689,-500.0,0.0002,2]
[322019709,1712691045698,-500.0,0.0002,2]
[322019711,1712691045707,-548.14,0.0002,2]
[322019713,1712691045716,-500.0,0.0002,2]
[322019715,1712691045725,-669.77,0.0002,2]
[322019717,1712691045735,-500.0,0.0002,2]
[322019718,1712691045744,-500.0,0.0002,2]
[322019719,1712691045752,-509.28,0.0002,2]
[322019720,1712691045761,-500.0,0.0002,2]
[322019721,1712691045770,-625.95,0.0002,2]
[322019722,1712691045779,-644.02,0.0002,2]
[322019723,1712691045788,-500.0,0.0002,2]
[322019724,1712691045797,-4448.5,0.0002,2]
[322019725,1712691045806,-1194.58,0.0002,2]
[322019726,1712691045815,-584.93897407,0.0002,2]
[322019727,1712691045824,-500.0,0.0002,2]
[322019728,1712691045833,-1973.39,0.0002,2]
[322019729,1712691045842,-521.14,0.0002,2]
[322019730,1712691045851,-500.0,0.0002,2]
[322019731,1712691045860,-185.12566125,0.0002,2]
[322019732,1712691045869,-500.0,0.0002,2]
[322019733,1712691045878,-500.0,0.0002,2]
[322019734,1712691045887,-212.01103585,0.0002,2]
[322019735,1712691045896,-3854.93240704,0.0002009,2]
[322019736,1712691045905,-532.26647687,0.00020119,2]
[322019737,1712691045913,-343.06359052,0.00020126,2]
[322019738,1712691045922,-162.15,0.00020251,2]
[322019739,1712691045931,-500.0,0.00020273,2]
[322019740,1712691045940,-500.0,0.00020273,2]
[322019741,1712691045949,-500.0,0.00020273,2]
[322019742,1712691045958,-500.0,0.00020273,2]
[322019743,1712691045967,-500.0,0.00020273,2]
[322019744,1712691045976,-188.21831428,0.00020273,2]
[322019745,1712691045985,-500.0,0.00020273,2]
[322019746,1712691045994,-500.0,0.00020273,2]
[322019747,1712691046003,-500.0,0.00020273,2]
[322019748,1712691046012,-500.0,0.00020273,2]
[322019749,1712691046021,-500.0,0.00020273,2]
[322019750,1712691046030,-500.0,0.00020273,2]
[322019751,1712691046039,-500.0,0.00020273,2]
[322019752,1712691046048,-506.20352241,0.00020273,2]
[322019753,1712691046057,-323.15833982,0.00020273,2]
[322019754,1712691046066,-500.0,0.00020273,2]
[322019755,1712691046075,-695.0,0.00020273,2]
[322019756,1712691046083,-500.0,0.00020273,2]
[322019757,1712691046092,-741.57,0.00020273,2]
[322019758,1712691046103,-500.0,0.00020273,2]
[322019759,1712691046112,-500.0,0.00020273,2]
[322019760,1712691046121,-942.7,0.00020273,2]
[322019761,1712691046130,-500.0,0.00020273,2]
[322019762,1712691046139,-500.0,0.00020273,2]
[322019763,1712691046148,-500.0,0.00020273,2]
[322019764,1712691046157,-693.39,0.00020273,2]
[322019765,1712691046165,-500.0,0.00020273,2]
[322019766,1712691046174,-4188.16,0.00020273,2]
[322019767,1712691046184,-500.0,0.00020273,2]
[322019768,1712691046193,-551.52848429,0.00020273,2]
[322019769,1712691046201,-1232.26,0.00020273,2]
[322019770,1712691046210,-516.51,0.00020273,2]
[322019771,1712691046219,-500.0,0.00020273,2]
[322019772,1712691046228,-500.0,0.00020273,2]
[322019773,1712691046237,-500.0,0.00020273,2]
[322019774,1712691046246,-500.0,0.00020273,2]
[322019775,1712691046255,-962.03,0.00020273,2]
[322019776,1712691046265,-500.0,0.00020273,2]
[322019777,1712691046274,-500.0,0.00020273,2]
[322019778,1712691046282,-635.47,0.00020273,2]
[322019779,1712691046291,-500.0,0.00020273,2]
[322019780,1712691046300,-500.0,0.00020273,2]
[322019781,1712691046309,-1341.18,0.00020273,2]
[322019782,1712691046318,-810.77,0.00020273,2]
[322019783,1712691046327,-500.0,0.00020273,2]
[322019784,1712691046336,-3519.24,0.00020273,2]
[322019785,1712691046345,-500.0,0.00020273,2]
[322019786,1712691046357,-500.0,0.00020273,2]
[322019787,1712691046366,-715.23,0.00020273,2]
[322019788,1712691046375,-500.0,0.00020273,2]
[322019789,1712691046385,-500.0,0.00020273,2]
[322019790,1712691046394,-500.0,0.00020273,2]
[322019791,1712691046405,-500.0,0.00020273,2]
[322019792,1712691046414,-500.0,0.00020273,2]
[322019793,1712691046423,-500.0,0.00020273,2]
[322019794,1712691046432,-515.2,0.00020273,2]
[322019795,1712691046441,-500.0,0.00020273,2]
[322019796,1712691046450,-500.0,0.00020273,2]
[322019797,1712691046459,-500.0,0.00020273,2]
[322019798,1712691046468,-500.0,0.00020273,2]
[322019799,1712691046477,-500.0,0.00020273,2]
[322019800,1712691046486,-500.0,0.00020273,2]
[322019801,1712691046495,-500.0,0.00020273,2]
[322019802,1712691046504,-500.0,0.00020273,2]
[322019803,1712691046513,-500.63969378,0.00020273,2]
[322019804,1712691046522,-500.0,0.00020273,2]
[322019805,1712691046531,-500.0,0.00020273,2]
[322019806,1712691046540,-500.0,0.00020273,2]
[322019807,1712691046549,-645.32,0.00020273,2]
[322019808,1712691046558,-500.0,0.00020273,2]
[322019809,1712691046567,-500.0,0.00020273,2]
[322019810,1712691046576,-500.0,0.00020273,2]
[322019811,1712691046585,-500.0,0.00020273,2]
[322019812,1712691046594,-716.09,0.00020273,2]
[322019813,1712691046608,-648.72,0.00020273,2]
[322019814,1712691046617,-617.55,0.00020273,2]
[322019815,1712691046627,-500.0,0.00020273,2]
[322019816,1712691046636,-500.0,0.00020273,2]
[322019817,1712691046645,-718.23,0.00020273,2]
[322019818,1712691046655,-1111.05,0.00020273,2]
[322019819,1712691046667,-500.0,0.00020273,2]
[322019820,1712691046677,-500.0,0.00020273,2]
[322019821,1712691046687,-500.0,0.00020273,2]
[322019822,1712691046696,-500.0,0.00020273,2]
[322019823,1712691046705,-500.0,0.00020273,2]
[322019824,1712691046714,-500.0,0.00020273,2]
[322019825,1712691046722,-500.0,0.00020273,2]
[322019826,1712691046731,-500.0,0.00020273,2]
[322019827,1712691046740,-1390.0,0.00020273,2]
[322019828,1712691046749,-500.0,0.00020273,2]
[322019829,1712691046758,-500.0,0.00020273,2]
[322019830,1712691046767,-500.0,0.00020273,2]
[322019831,1712691046777,-684.05,0.00020273,2]
[322019832,1712691046786,-500.0,0.00020273,2]
[322019833,1712691046795,-1299.02,0.00020273,2]
[322019834,1712691046805,-311.33883147,0.00020273,2]
[322019835,1712691046814,-608.21868676,0.00020273,2]
[322019836,1712691046823,-500.0,0.00020273,2]
[322019837,1712691046832,-548.14,0.00020273,2]
[322019838,1712691046841,-500.0,0.00020273,2]
[322019839,1712691046852,-669.77,0.00020273,2]
[322019840,1712691046861,-500.0,0.00020273,2]
[322019841,1712691046870,-500.0,0.00020273,2]
[322019842,1712691046879,-500.0,0.00020273,2]
[322019843,1712691046888,-509.28,0.00020273,2]
[322019844,1712691046897,-500.0,0.00020273,2]
[322019845,1712691046906,-625.95,0.00020273,2]
[322019846,1712691046915,-644.02,0.00020273,2]
[322019847,1712691046923,-1152.17,0.00020273,2]
[322019848,1712691046932,-500.0,0.00020273,2]
[322019849,1712691046942,-4448.5,0.00020273,2]
[322019850,1712691046951,-1194.58,0.00020273,2]
[322019851,1712691046960,-500.0,0.00020273,2]
[322019852,1712691046968,-3712.51,0.00020273,2]
[322019853,1712691046977,-1973.39,0.00020273,2]
[322019854,1712691046986,-521.14,0.00020273,2]
[322019855,1712691046996,-500.0,0.00020273,2]
[322019856,1712691047005,-500.0,0.00020273,2]
[322019857,1712691047072,-500.0,0.00020273,2]
[322019858,1712691047081,-3854.93240704,0.00020293,2]
[322019859,1712691047090,-532.26647687,0.00020379,2]
[322019860,1712691047099,-500.0,0.00020446,2]
[322019861,1712691047108,-22134.1295,0.00020447,2]
[322019862,1712691047116,-1000.0,0.00020447,2]
[322019863,1712691047125,-3854.93240704,0.00020495,2]
[322019864,1712691047134,-150.0,0.000205,2]
[322019865,1712691047143,-354.0,0.00020511,2]
[322019866,1712691047152,-214.0,0.00020511,2]
[322019867,1712691047160,-1009.0,0.00020547,2]
[322019868,1712691047169,-543.0,0.00020547,2]
[322019869,1712691047178,-530.0,0.00020547,2]
[322019870,1712691047187,-500.0,0.00020547,2]
[322019871,1712691047196,-500.0,0.00020547,2]
[322019872,1712691047205,-561.11002434,0.00020547,2]
[322019873,1712691047214,-209.96446382,0.00020547,2]
[322019874,1712691047223,-500.0,0.00020547,2]
[322019875,1712691047231,-217.79101416,0.00020547,2]
[322019876,1712691047241,-500.0,0.00020547,2]
[322019877,1712691047250,-500.0,0.00020547,2]
[322019878,1712691047258,-500.0,0.00020547,2]
[322019879,1712691047267,-500.0,0.00020547,2]
[322019880,1712691047276,-500.0,0.00020547,2]
[322019881,1712691047286,-344.35381787,0.00020547,2]
[322019882,1712691047294,-500.0,0.00020547,2]
[322019883,1712691047303,-695.0,0.00020547,2]
[322019884,1712691047312,-500.0,0.00020547,2]
[322019885,1712691047322,-741.57,0.00020547,2]
[322019886,1712691047330,-500.0,0.00020547,2]
[322019887,1712691047339,-500.0,0.00020547,2]
[322019888,1712691047348,-942.7,0.00020547,2]
[322019889,1712691047357,-500.0,0.00020547,2]
[322019890,1712691047365,-500.0,0.00020547,2]
[322019891,1712691047374,-500.0,0.00020547,2]
[322019892,1712691047384,-500.0,0.00020547,2]
[322019893,1712691047393,-693.39,0.00020547,2]
[322019894,1712691047402,-4188.16,0.00020547,2]
[322019895,1712691047411,-500.0,0.00020547,2]
[322019896,1712691047420,-1232.26,0.00020547,2]
[322019897,1712691047429,-516.51,0.00020547,2]
[322019898,1712691047439,-500.0,0.00020547,2]
[322019899,1712691047448,-500.0,0.00020547,2]
[322019900,1712691047457,-500.0,0.00020547,2]
[322019901,1712691047466,-500.0,0.00020547,2]
[322019902,1712691047475,-962.03,0.00020547,2]
[322019903,1712691047484,-500.0,0.00020547,2]
[322019904,1712691047493,-500.0,0.00020547,2]
[322019905,1712691047502,-635.47,0.00020547,2]
[322019906,1712691047511,-500.0,0.00020547,2]
[322019907,1712691047521,-500.0,0.00020547,2]
[322019908,1712691047529,-1341.18,0.00020547,2]
[322019909,1712691047538,-810.77,0.00020547,2]
[322019910,1712691047548,-500.0,0.00020547,2]
[322019911,1712691047557,-3519.24,0.00020547,2]
[322019912,1712691047567,-500.0,0.00020547,2]
[322019913,1712691047576,-500.0,0.00020547,2]
[322019914,1712691047585,-500.0,0.00020547,2]
[322019915,1712691047594,-715.23,0.00020547,2]
[322019916,1712691047610,-500.0,0.00020547,2]
[322019917,1712691047620,-500.0,0.00020547,2]
[322019918,1712691047629,-500.0,0.00020547,2]
[322019919,1712691047638,-500.0,0.00020547,2]
[322019920,1712691047647,-500.0,0.00020547,2]
[322019921,1712691047656,-500.0,0.00020547,2]
[322019922,1712691047666,-515.2,0.00020547,2]
[322019923,1712691047675,-500.0,0.00020547,2]
[322019924,1712691047685,-500.0,0.00020547,2]
[322019925,1712691047696,-500.0,0.00020547,2]
[322019926,1712691047705,-500.0,0.00020547,2]
[322019927,1712691047715,-500.0,0.00020547,2]
[322019928,1712691047724,-500.0,0.00020547,2]
[322019929,1712691047734,-500.0,0.00020547,2]
[322019930,1712691047743,-500.0,0.00020547,2]
[322019931,1712691047755,-500.0,0.00020547,2]
[322019932,1712691047764,-500.0,0.00020547,2]
[322019933,1712691047774,-645.32,0.00020547,2]
[322019934,1712691047784,-500.0,0.00020547,2]
[322019935,1712691047793,-500.0,0.00020547,2]